[Event "Titled Tuesday Blitz January 17 Early 2023"]
[White "Ruiz Aguilar, Pablo Alexander"]
[Black "Berezin, Viktor"]
[WhiteFideId "4401352"]
[BlackFideId "14107872"]
[WhiteElo "2161"]
[BlackElo "2307"]
[Result "0-1"]
[Round "04"]
[TimeControl "180+2"]
[Date "2023.01.17"]
[WhiteClock "0:00:11"]
[BlackClock "0:00:04"]

1. e4 {[%clk 0:03:00]}  g6 {[%clk 0:02:57]} 2. d4 {[%clk 0:03:00]}  Bg7 {[%clk 0:02:57]} 3. Nf3 {[%clk 0:02:59]}  d6 {[%clk 0:02:55]} 4. h3 {[%clk 0:02:59]}  Nf6 {[%clk 0:02:55]} 5. Nc3 {[%clk 0:02:58]}  O-O {[%clk 0:02:55]} 6. Bd3 {[%clk 0:02:57]}  Nc6 {[%clk 0:02:55]} 7. O-O {[%clk 0:02:56]}  e5 {[%clk 0:02:56]} 8. d5 {[%clk 0:02:56]}  Ne7 {[%clk 0:02:55]} 9. Bg5 {[%clk 0:02:53]}  h6 {[%clk 0:02:54]} 10. Be3 {[%clk 0:02:53]}  Nh5 {[%clk 0:02:53]} 11. Nh2 {[%clk 0:02:45]}  Nf4 {[%clk 0:02:52]} 12. Ng4 {[%clk 0:02:40]}  f5 {[%clk 0:02:43]} 13. Nh2 {[%clk 0:02:38]}  Nxd3 {[%clk 0:02:38]} 14. cxd3 {[%clk 0:02:37]}  f4 {[%clk 0:02:39]} 15. Bd2 {[%clk 0:02:36]}  c5 {[%clk 0:02:26]} 16. a4 {[%clk 0:02:32]}  g5 {[%clk 0:02:23]} 17. f3 {[%clk 0:02:30]}  h5 {[%clk 0:02:22]} 18. Kf2 {[%clk 0:02:28]}  Rb8 {[%clk 0:02:06]} 19. Rh1 {[%clk 0:02:21]}  a6 {[%clk 0:02:05]} 20. Nf1 {[%clk 0:02:10]}  b5 {[%clk 0:02:03]} 21. axb5 {[%clk 0:02:09]}  axb5 {[%clk 0:02:04]} 22. Ke1 {[%clk 0:02:00]}  c4 {[%clk 0:02:01]} 23. dxc4 {[%clk 0:01:41]}  bxc4 {[%clk 0:02:01]} 24. Ra2 {[%clk 0:01:41]}  Ng6 {[%clk 0:01:58]} 25. Qe2 {[%clk 0:01:30]}  Nh4 {[%clk 0:01:46]} 26. Rh2 {[%clk 0:01:19]}  g4 {[%clk 0:01:37]} 27. hxg4 {[%clk 0:01:19]}  hxg4 {[%clk 0:01:37]} 28. Kd1 {[%clk 0:01:11]}  Qg5 {[%clk 0:01:33]} 29. Kc2 {[%clk 0:00:45]}  Rf7 {[%clk 0:01:24]} 30. Rh1 {[%clk 0:00:39]}  Rfb7 {[%clk 0:01:00]} 31. Nh2 {[%clk 0:00:38]}  g3 {[%clk 0:00:55]} 32. Nf1 {[%clk 0:00:38]}  Kf7 {[%clk 0:00:42]} 33. Bc1 {[%clk 0:00:37]}  Bf6 {[%clk 0:00:41]} 34. Nd2 {[%clk 0:00:37]}  Bd7 {[%clk 0:00:33]} 35. Nxc4 {[%clk 0:00:37]}  Ke7 {[%clk 0:00:33]} 36. Na5 {[%clk 0:00:34]}  Rc7 {[%clk 0:00:31]} 37. Kb1 {[%clk 0:00:30]}  Rxc3 {[%clk 0:00:29]} 38. Ka1 {[%clk 0:00:29]}  Rc7 {[%clk 0:00:28]} 39. Nc6+ {[%clk 0:00:27]}  Bxc6 {[%clk 0:00:27]} 40. dxc6 {[%clk 0:00:27]}  Qg8 {[%clk 0:00:26]} 41. Qa6 {[%clk 0:00:21]}  Qb3 {[%clk 0:00:22]} 42. Qe2 {[%clk 0:00:15]}  Rxc6 {[%clk 0:00:17]} 43. Bxf4 {[%clk 0:00:14]}  exf4 {[%clk 0:00:12]} 44. e5 {[%clk 0:00:15]}  Bxe5 {[%clk 0:00:10]} 45. Qe4 {[%clk 0:00:09]}  Qxa2+ {[%clk 0:00:03]} 46. Kxa2 {[%clk 0:00:09]}  Rxb2+ {[%clk 0:00:04]} 47. Ka3 {[%clk 0:00:07]}  Ra6+ {[%clk 0:00:04]} 48. Qa4 {[%clk 0:00:08]}  Rxa4+ {[%clk 0:00:04]} 49. Kxa4 {[%clk 0:00:09]}  Bf6 {[%clk 0:00:03]} 50. Re1+ {[%clk 0:00:06]}  Kf7 {[%clk 0:00:04]} 51. Re4 {[%clk 0:00:06]}  Rxg2 {[%clk 0:00:04]} 52. Rxf4 {[%clk 0:00:06]}  Rf2 {[%clk 0:00:04]} 53. Rg4 {[%clk 0:00:05]}  Rxf3 {[%clk 0:00:04]} 54. Kb5 {[%clk 0:00:05]}  g2 {[%clk 0:00:05]} 55. Kc6 {[%clk 0:00:05]}  Rf1 {[%clk 0:00:06]} 56. Rxg2 {[%clk 0:00:04]}  Nxg2 {[%clk 0:00:05]} 57. Kxd6 {[%clk 0:00:04]}  Re1 {[%clk 0:00:06]} 58. Kc5 {[%clk 0:00:05]}  Ke6 {[%clk 0:00:06]} 59. Kb4 {[%clk 0:00:06]}  Nf4 {[%clk 0:00:06]} 60. Kb3 {[%clk 0:00:06]}  Bh4 {[%clk 0:00:07]} 61. Kc2 {[%clk 0:00:07]}  Kd5 {[%clk 0:00:07]} 62. Kd2 {[%clk 0:00:07]}  Re8 {[%clk 0:00:08]} 63. Kc2 {[%clk 0:00:07]}  Kd4 {[%clk 0:00:08]} 64. Kb3 {[%clk 0:00:07]}  Rc8 {[%clk 0:00:08]} 65. Kb4 {[%clk 0:00:07]}  Nd3+ {[%clk 0:00:08]} 66. Ka5 {[%clk 0:00:08]}  Be1+ {[%clk 0:00:08]} 67. Kb6 {[%clk 0:00:08]}  Bh4 {[%clk 0:00:08]} 68. Kb7 {[%clk 0:00:09]}  Rc1 {[%clk 0:00:08]} 69. Kb6 {[%clk 0:00:09]}  Kd5 {[%clk 0:00:09]} 70. Kb5 {[%clk 0:00:10]}  Rb1+ {[%clk 0:00:09]} 71. Ka4 {[%clk 0:00:10]}  Kc4 {[%clk 0:00:09]} 72. Ka5 {[%clk 0:00:10]}  Kc5 {[%clk 0:00:07]} 73. Ka6 {[%clk 0:00:11]}  Rb5 {[%clk 0:00:07]} 74. Ka7 {[%clk 0:00:11]}  Rb6 {[%clk 0:00:07]} 75. Ka8 {[%clk 0:00:11]}  Kc6 {[%clk 0:00:08]} 76. Ka7 {[%clk 0:00:11]}  Rb5 {[%clk 0:00:04]} 77. Ka6 {[%clk 0:00:11]}  Nb4+ {[%clk 0:00:05]} 78. Ka7 {[%clk 0:00:11]}  Ra5+ {[%clk 0:00:03]} 79. Kb8 {[%clk 0:00:11]}  Bg3+ {[%clk 0:00:04]} 80. Kc8 {[%clk 0:00:11]}  Ra8# {[%clk 0:00:04]} 0-1


[Site "https://www.chess.com"]

[Event "Titled Tuesday Blitz January 17 Early 2023"]
[White "Iljin, Timofey"]
[Black "Houska, Jovanka"]
[WhiteFideId "14110180"]
[BlackFideId "405094"]
[WhiteElo "2329"]
[BlackElo "2338"]
[Result "1-0"]
[Round "04"]
[TimeControl "180+2"]
[Date "2023.01.17"]
[WhiteClock "0:00:14"]
[BlackClock "0:00:03"]

1. e4 {[%clk 0:03:00]}  c6 {[%clk 0:02:58]} 2. d4 {[%clk 0:03:01]}  d5 {[%clk 0:02:57]} 3. e5 {[%clk 0:03:01]}  Bf5 {[%clk 0:02:55]} 4. h4 {[%clk 0:03:01]}  h5 {[%clk 0:02:54]} 5. Bg5 {[%clk 0:03:00]}  Qb6 {[%clk 0:02:47]} 6. Bd3 {[%clk 0:02:59]}  Bxd3 {[%clk 0:02:46]} 7. Qxd3 {[%clk 0:03:00]}  e6 {[%clk 0:02:46]} 8. Nd2 {[%clk 0:02:58]}  c5 {[%clk 0:02:42]} 9. c3 {[%clk 0:02:56]}  Nc6 {[%clk 0:02:42]} 10. Ngf3 {[%clk 0:02:55]}  Nge7 {[%clk 0:02:42]} 11. O-O {[%clk 0:02:55]}  Nf5 {[%clk 0:02:42]} 12. dxc5 {[%clk 0:02:55]}  Bxc5 {[%clk 0:02:41]} 13. b4 {[%clk 0:02:55]}  Be7 {[%clk 0:02:41]} 14. a4 {[%clk 0:02:56]}  Bxg5 {[%clk 0:02:36]} 15. hxg5 {[%clk 0:02:52]}  O-O {[%clk 0:02:12]} 16. Nb3 {[%clk 0:02:49]}  Qc7 {[%clk 0:02:11]} 17. Rfe1 {[%clk 0:02:45]}  Rac8 {[%clk 0:02:08]} 18. Rac1 {[%clk 0:02:44]}  Nce7 {[%clk 0:02:08]} 19. Nbd2 {[%clk 0:02:30]}  Rfd8 {[%clk 0:02:02]} 20. Nd4 {[%clk 0:02:27]}  Nxd4 {[%clk 0:02:00]} 21. cxd4 {[%clk 0:02:18]}  Qxc1 {[%clk 0:02:00]} 22. Rxc1 {[%clk 0:02:18]}  Rxc1+ {[%clk 0:02:00]} 23. Kh2 {[%clk 0:02:19]}  Rdc8 {[%clk 0:01:58]} 24. Qb5 {[%clk 0:02:18]}  Nf5 {[%clk 0:01:43]} 25. Nb3 {[%clk 0:02:08]}  R1c2 {[%clk 0:01:40]} 26. Qxb7 {[%clk 0:02:06]}  R8c3 {[%clk 0:01:38]} 27. Nc5 {[%clk 0:01:52]}  Nxd4 {[%clk 0:00:36]} 28. Qxa7 {[%clk 0:01:47]}  Rxf2 {[%clk 0:00:33]} 29. Nd7 {[%clk 0:01:38]}  Rcc2 {[%clk 0:00:17]} 30. Qxd4 {[%clk 0:01:01]}  Rxg2+ {[%clk 0:00:17]} 31. Kh3 {[%clk 0:00:55]}  Rgd2 {[%clk 0:00:12]} 32. Qe3 {[%clk 0:00:39]}  d4 {[%clk 0:00:12]} 33. Qf4 {[%clk 0:00:30]}  Rd3+ {[%clk 0:00:10]} 34. Kh4 {[%clk 0:00:29]}  Rcc3 {[%clk 0:00:10]} 35. Kxh5 {[%clk 0:00:27]}  Rh3+ {[%clk 0:00:10]} 36. Kg4 {[%clk 0:00:27]}  d3 {[%clk 0:00:05]} 37. Qd4 {[%clk 0:00:15]}  Rg3+ {[%clk 0:00:03]} 38. Kxg3 {[%clk 0:00:13]}  d2+ {[%clk 0:00:03]} 39. Kf2 {[%clk 0:00:14]} 1-0


[Site "https://www.chess.com"]

[Event "Titled Tuesday Blitz January 17 Early 2023"]
[White "Lehtosaari, Mauri"]
[Black "Matveeva, Olga"]
[WhiteFideId "501999"]
[BlackFideId "24107018"]
[WhiteElo "2176"]
[BlackElo "2128"]
[Result "1-0"]
[Round "04"]
[TimeControl "180+2"]
[Date "2023.01.17"]
[WhiteClock "0:00:13"]
[BlackClock "0:00:01"]

1. d4 {[%clk 0:02:54]}  d5 {[%clk 0:03:00]} 2. Nf3 {[%clk 0:02:45]}  Nf6 {[%clk 0:02:59]} 3. Bg5 {[%clk 0:02:45]}  e6 {[%clk 0:02:58]} 4. e3 {[%clk 0:02:45]}  c5 {[%clk 0:02:59]} 5. c3 {[%clk 0:02:45]}  Nc6 {[%clk 0:02:58]} 6. Nbd2 {[%clk 0:02:42]}  h6 {[%clk 0:02:56]} 7. Bh4 {[%clk 0:02:41]}  Be7 {[%clk 0:02:53]} 8. Bd3 {[%clk 0:02:40]}  O-O {[%clk 0:02:50]} 9. O-O {[%clk 0:02:39]}  b6 {[%clk 0:02:49]} 10. Ne5 {[%clk 0:02:39]}  Bb7 {[%clk 0:02:46]} 11. f4 {[%clk 0:02:39]}  Ne4 {[%clk 0:02:43]} 12. Bxe7 {[%clk 0:02:36]}  Nxe7 {[%clk 0:02:44]} 13. Ndf3 {[%clk 0:02:07]}  f5 {[%clk 0:02:39]} 14. Qe2 {[%clk 0:01:56]}  cxd4 {[%clk 0:02:33]} 15. cxd4 {[%clk 0:01:44]}  Rc8 {[%clk 0:02:32]} 16. Rfc1 {[%clk 0:01:33]}  Qd6 {[%clk 0:02:28]} 17. a3 {[%clk 0:01:33]}  Kh7 {[%clk 0:02:09]} 18. Qe1 {[%clk 0:01:28]}  Rxc1 {[%clk 0:02:04]} 19. Rxc1 {[%clk 0:01:27]}  Rc8 {[%clk 0:02:03]} 20. Rxc8 {[%clk 0:01:27]}  Bxc8 {[%clk 0:01:58]} 21. Qc1 {[%clk 0:01:18]}  Bb7 {[%clk 0:01:53]} 22. Nf7 {[%clk 0:01:12]}  Qc6 {[%clk 0:01:48]} 23. Qxc6 {[%clk 0:01:10]}  Nxc6 {[%clk 0:01:46]} 24. N3e5 {[%clk 0:01:06]}  Nxe5 {[%clk 0:01:40]} 25. Nxe5 {[%clk 0:01:03]}  g5 {[%clk 0:01:31]} 26. Bxe4 {[%clk 0:00:59]}  dxe4 {[%clk 0:01:30]} 27. g3 {[%clk 0:00:58]}  gxf4 {[%clk 0:01:22]} 28. gxf4 {[%clk 0:00:57]}  Kg7 {[%clk 0:01:22]} 29. Kf2 {[%clk 0:00:56]}  Bd5 {[%clk 0:01:21]} 30. Kg3 {[%clk 0:00:55]}  Bb3 {[%clk 0:01:10]} 31. Kf2 {[%clk 0:00:54]}  Bd5 {[%clk 0:01:10]} 32. Ke1 {[%clk 0:00:54]}  Kf6 {[%clk 0:01:01]} 33. Kd2 {[%clk 0:00:53]}  Ke7 {[%clk 0:00:56]} 34. Kc3 {[%clk 0:00:53]}  a5 {[%clk 0:00:51]} 35. b4 {[%clk 0:00:47]}  a4 {[%clk 0:00:26]} 36. b5 {[%clk 0:00:47]}  h5 {[%clk 0:00:19]} 37. h4 {[%clk 0:00:46]}  Kd6 {[%clk 0:00:15]} 38. Kb4 {[%clk 0:00:46]}  Bb3 {[%clk 0:00:15]} 39. Nc6 {[%clk 0:00:42]}  Bd1 {[%clk 0:00:11]} 40. Nd8 {[%clk 0:00:39]}  Bc2 {[%clk 0:00:08]} 41. Nf7+ {[%clk 0:00:36]}  Kd5 {[%clk 0:00:08]} 42. Ng5 {[%clk 0:00:34]}  Bd1 {[%clk 0:00:07]} 43. Nh7 {[%clk 0:00:32]}  Kd6 {[%clk 0:00:06]} 44. Nf6 {[%clk 0:00:18]}  Ke7 {[%clk 0:00:04]} 45. Nxh5 {[%clk 0:00:15]}  Bxh5 {[%clk 0:00:03]} 46. Kxa4 {[%clk 0:00:16]}  Kd6 {[%clk 0:00:03]} 47. Kb4 {[%clk 0:00:16]}  Kc7 {[%clk 0:00:02]} 48. a4 {[%clk 0:00:16]}  Kb7 {[%clk 0:00:01]} 49. a5 {[%clk 0:00:16]}  bxa5+ {[%clk 0:00:01]} 50. Kxa5 {[%clk 0:00:17]}  Be2 {[%clk 0:00:01]} 51. b6 {[%clk 0:00:13]} 1-0


[Site "https://www.chess.com"]

[Event "Titled Tuesday Blitz January 17 Early 2023"]
[White "Garmash, Aliona"]
[Black "Santos Flores, Alberto"]
[WhiteFideId "34127620"]
[BlackFideId "3601234"]
[WhiteElo "2039"]
[BlackElo "2164"]
[Result "0-1"]
[Round "04"]
[TimeControl "180+2"]
[Date "2023.01.17"]
[WhiteClock "0:00:02"]
[BlackClock "0:01:30"]

1. d4 {[%clk 0:03:00]}  d5 {[%clk 0:02:59]} 2. Nf3 {[%clk 0:02:59]}  Nf6 {[%clk 0:02:59]} 3. c4 {[%clk 0:02:59]}  c6 {[%clk 0:02:59]} 4. Nc3 {[%clk 0:02:59]}  dxc4 {[%clk 0:02:58]} 5. a4 {[%clk 0:02:58]}  Bf5 {[%clk 0:02:58]} 6. e3 {[%clk 0:02:56]}  e6 {[%clk 0:02:58]} 7. Bxc4 {[%clk 0:02:56]}  Bb4 {[%clk 0:02:58]} 8. O-O {[%clk 0:02:56]}  Nbd7 {[%clk 0:02:59]} 9. Qe2 {[%clk 0:02:54]}  Bg6 {[%clk 0:02:59]} 10. e4 {[%clk 0:02:38]}  O-O {[%clk 0:02:58]} 11. Bd3 {[%clk 0:02:38]}  Qa5 {[%clk 0:02:49]} 12. Bd2 {[%clk 0:02:24]}  e5 {[%clk 0:02:37]} 13. Nxe5 {[%clk 0:02:03]}  Nxe5 {[%clk 0:02:37]} 14. dxe5 {[%clk 0:02:03]}  Qxe5 {[%clk 0:02:36]} 15. f4 {[%clk 0:01:56]}  Qd4+ {[%clk 0:02:21]} 16. Be3 {[%clk 0:01:52]}  Qd8 {[%clk 0:02:22]} 17. f5 {[%clk 0:00:42]}  Bh5 {[%clk 0:02:21]} 18. Qd2 {[%clk 0:00:25]}  Ng4 {[%clk 0:02:14]} 19. Kh1 {[%clk 0:00:24]}  Nxe3 {[%clk 0:02:12]} 20. Qxe3 {[%clk 0:00:24]}  f6 {[%clk 0:02:06]} 21. Rad1 {[%clk 0:00:20]}  Qe7 {[%clk 0:02:03]} 22. Bc4+ {[%clk 0:00:18]}  Bf7 {[%clk 0:02:02]} 23. Bxf7+ {[%clk 0:00:17]}  Qxf7 {[%clk 0:02:02]} 24. Qd4 {[%clk 0:00:17]}  a5 {[%clk 0:02:00]} 25. Qd7 {[%clk 0:00:16]}  Rae8 {[%clk 0:01:46]} 26. Rfe1 {[%clk 0:00:12]}  Qxd7 {[%clk 0:01:44]} 27. Rxd7 {[%clk 0:00:12]}  Rf7 {[%clk 0:01:45]} 28. Rxf7 {[%clk 0:00:11]}  Kxf7 {[%clk 0:01:45]} 29. g4 {[%clk 0:00:10]}  Re5 {[%clk 0:01:40]} 30. Kg2 {[%clk 0:00:10]}  Bxc3 {[%clk 0:01:40]} 31. bxc3 {[%clk 0:00:09]}  Rc5 {[%clk 0:01:40]} 32. Rb1 {[%clk 0:00:09]}  b5 {[%clk 0:01:41]} 33. axb5 {[%clk 0:00:07]}  cxb5 {[%clk 0:01:41]} 34. Rb3 {[%clk 0:00:07]}  a4 {[%clk 0:01:41]} 35. Ra3 {[%clk 0:00:06]}  g5 {[%clk 0:01:32]} 36. fxg6+ {[%clk 0:00:04]}  hxg6 {[%clk 0:01:31]} 37. Kf3 {[%clk 0:00:04]}  Ke6 {[%clk 0:01:32]} 38. h4 {[%clk 0:00:04]}  Ke5 {[%clk 0:01:31]} 39. h5 {[%clk 0:00:02]}  gxh5 {[%clk 0:01:30]} 40. gxh5 {[%clk 0:00:02]}  Rc4 {[%clk 0:01:30]} 0-1


[Site "https://www.chess.com"]

[Event "Titled Tuesday Blitz January 17 Early 2023"]
[White "Shuvalov, Evgenij"]
[Black "Zanette, Edgard Vinicius"]
[WhiteFideId "4187237"]
[BlackFideId "2109263"]
[WhiteElo "2038"]
[BlackElo "2085"]
[Result "0-1"]
[Round "04"]
[TimeControl "180+2"]
[Date "2023.01.17"]
[WhiteClock "0:00:01"]
[BlackClock "0:00:15"]

1. d4 {[%clk 0:03:00]}  Nf6 {[%clk 0:02:59]} 2. c4 {[%clk 0:03:00]}  e6 {[%clk 0:03:00]} 3. Nc3 {[%clk 0:03:00]}  Bb4 {[%clk 0:02:59]} 4. a3 {[%clk 0:03:00]}  Bxc3+ {[%clk 0:02:59]} 5. bxc3 {[%clk 0:03:01]}  O-O {[%clk 0:02:58]} 6. f3 {[%clk 0:03:00]}  d5 {[%clk 0:02:58]} 7. e3 {[%clk 0:02:36]}  c5 {[%clk 0:02:55]} 8. cxd5 {[%clk 0:02:33]}  exd5 {[%clk 0:02:53]} 9. Bd3 {[%clk 0:02:33]}  b6 {[%clk 0:02:43]} 10. Ne2 {[%clk 0:02:31]}  Ba6 {[%clk 0:02:36]} 11. O-O {[%clk 0:02:30]}  Bxd3 {[%clk 0:02:35]} 12. Qxd3 {[%clk 0:02:31]}  Nc6 {[%clk 0:02:32]} 13. e4 {[%clk 0:02:09]}  cxd4 {[%clk 0:02:20]} 14. cxd4 {[%clk 0:02:08]}  dxe4 {[%clk 0:02:19]} 15. fxe4 {[%clk 0:02:09]}  Re8 {[%clk 0:02:05]} 16. Bg5 {[%clk 0:01:53]}  Qd6 {[%clk 0:01:18]} 17. Bxf6 {[%clk 0:01:05]}  gxf6 {[%clk 0:01:17]} 18. Rf5 {[%clk 0:01:04]}  Rad8 {[%clk 0:01:13]} 19. Rd1 {[%clk 0:00:20]}  Ne5 {[%clk 0:01:01]} 20. Qh3 {[%clk 0:00:15]}  Ng6 {[%clk 0:00:52]} 21. Ng3 {[%clk 0:00:13]}  Qxa3 {[%clk 0:00:46]} 22. Nh5 {[%clk 0:00:11]}  Qxh3 {[%clk 0:00:45]} 23. Nxf6+ {[%clk 0:00:11]}  Kh8 {[%clk 0:00:33]} 24. gxh3 {[%clk 0:00:12]}  Re7 {[%clk 0:00:30]} 25. Rh5 {[%clk 0:00:09]}  Nf8 {[%clk 0:00:28]} 26. e5 {[%clk 0:00:07]}  Rc7 {[%clk 0:00:23]} 27. Kf2 {[%clk 0:00:07]}  Rc6 {[%clk 0:00:18]} 28. Rg1 {[%clk 0:00:06]}  Rxf6+ {[%clk 0:00:18]} 29. exf6 {[%clk 0:00:06]}  Ng6 {[%clk 0:00:19]} 30. d5 {[%clk 0:00:04]}  Rd6 {[%clk 0:00:19]} 31. Rf5 {[%clk 0:00:03]}  Nh4 {[%clk 0:00:17]} 32. Re5 {[%clk 0:00:02]}  Rd8 {[%clk 0:00:15]} 33. Ke3 {[%clk 0:00:01]}  Ng6 {[%clk 0:00:15]} 0-1


[Site "https://www.chess.com"]

[Event "Titled Tuesday Blitz January 17 Early 2023"]
[White "Skurikhin, Dmitrij"]
[Black "Bettalli, Francesco"]
[WhiteFideId "4161297"]
[BlackFideId "2816453"]
[WhiteElo "2297"]
[BlackElo "2252"]
[Result "1-0"]
[Round "04"]
[TimeControl "180+2"]
[Date "2023.01.17"]
[WhiteClock "0:00:31"]
[BlackClock "0:01:00"]

1. d4 {[%clk 0:02:59]}  g6 {[%clk 0:02:02]} 2. c4 {[%clk 0:02:58]}  Bg7 {[%clk 0:02:00]} 3. Nc3 {[%clk 0:02:55]}  c5 {[%clk 0:02:00]} 4. d5 {[%clk 0:02:54]}  Bxc3+ {[%clk 0:02:00]} 5. bxc3 {[%clk 0:02:53]}  f5 {[%clk 0:02:01]} 6. h4 {[%clk 0:02:50]}  Nf6 {[%clk 0:01:57]} 7. Bf4 {[%clk 0:02:46]}  d6 {[%clk 0:01:54]} 8. f3 {[%clk 0:02:45]}  Qa5 {[%clk 0:01:54]} 9. Qd2 {[%clk 0:02:42]}  Nbd7 {[%clk 0:01:54]} 10. e3 {[%clk 0:02:37]}  a6 {[%clk 0:01:50]} 11. Nh3 {[%clk 0:02:32]}  b5 {[%clk 0:01:43]} 12. cxb5 {[%clk 0:02:10]}  axb5 {[%clk 0:01:44]} 13. Ng5 {[%clk 0:02:10]}  Nb6 {[%clk 0:01:29]} 14. e4 {[%clk 0:01:15]}  h6 {[%clk 0:01:27]} 15. Ne6 {[%clk 0:00:50]}  Bxe6 {[%clk 0:01:24]} 16. dxe6 {[%clk 0:00:49]}  fxe4 {[%clk 0:01:25]} 17. Bxh6 {[%clk 0:00:47]}  Rxh6 {[%clk 0:01:22]} 18. Qxh6 {[%clk 0:00:37]}  Qxc3+ {[%clk 0:01:19]} 19. Kf2 {[%clk 0:00:35]}  c4 {[%clk 0:01:01]} 20. Qh8+ {[%clk 0:00:31]}  Ng8 {[%clk 0:01:00]} 21. Qxg8# {[%clk 0:00:31]} 1-0


[Site "https://www.chess.com"]

[Event "Titled Tuesday Blitz January 17 Early 2023"]
[White "Rios Escobar, Adan"]
[Black "Ahmad, Al Khatib"]
[WhiteFideId "3403645"]
[BlackFideId "8103178"]
[WhiteElo "2234"]
[BlackElo "2344"]
[Result "1-0"]
[Round "04"]
[TimeControl "180+2"]
[Date "2023.01.17"]
[WhiteClock "0:00:25"]
[BlackClock "0:00:02"]

1. d4 {[%clk 0:02:59]}  Nf6 {[%clk 0:02:59]} 2. g3 {[%clk 0:02:59]}  g6 {[%clk 0:03:00]} 3. Bg2 {[%clk 0:02:58]}  Bg7 {[%clk 0:02:58]} 4. e4 {[%clk 0:02:59]}  O-O {[%clk 0:02:57]} 5. Ne2 {[%clk 0:02:59]}  d6 {[%clk 0:02:57]} 6. O-O {[%clk 0:03:00]}  Nbd7 {[%clk 0:02:55]} 7. Nbc3 {[%clk 0:02:57]}  c5 {[%clk 0:02:55]} 8. d5 {[%clk 0:02:54]}  Rb8 {[%clk 0:02:40]} 9. a4 {[%clk 0:02:53]}  a6 {[%clk 0:02:33]} 10. a5 {[%clk 0:02:48]}  b5 {[%clk 0:02:33]} 11. axb6 {[%clk 0:02:48]}  Nxb6 {[%clk 0:02:27]} 12. h3 {[%clk 0:02:47]}  e6 {[%clk 0:02:21]} 13. dxe6 {[%clk 0:02:37]}  Bxe6 {[%clk 0:02:22]} 14. Nf4 {[%clk 0:02:34]}  Bc4 {[%clk 0:02:07]} 15. Re1 {[%clk 0:02:34]}  Re8 {[%clk 0:02:03]} 16. b3 {[%clk 0:02:19]}  Nh5 {[%clk 0:01:42]} 17. Qf3 {[%clk 0:02:03]}  Nxf4 {[%clk 0:01:18]} 18. Bxf4 {[%clk 0:02:01]}  Bb5 {[%clk 0:01:17]} 19. Nxb5 {[%clk 0:01:53]}  axb5 {[%clk 0:01:12]} 20. Ra7 {[%clk 0:01:52]}  Re7 {[%clk 0:01:01]} 21. Bg5 {[%clk 0:01:41]}  f6 {[%clk 0:00:52]} 22. Rxe7 {[%clk 0:01:31]}  Qxe7 {[%clk 0:00:51]} 23. Bf4 {[%clk 0:01:29]}  Nd7 {[%clk 0:00:50]} 24. Qd3 {[%clk 0:01:20]}  Ne5 {[%clk 0:00:49]} 25. Qd5+ {[%clk 0:01:21]}  Kh8 {[%clk 0:00:44]} 26. Rd1 {[%clk 0:01:21]}  Bf8 {[%clk 0:00:36]} 27. h4 {[%clk 0:01:16]}  Kg7 {[%clk 0:00:28]} 28. Ra1 {[%clk 0:01:08]}  Rb7 {[%clk 0:00:24]} 29. Ra6 {[%clk 0:01:00]}  Ra7 {[%clk 0:00:23]} 30. Rb6 {[%clk 0:00:52]}  Ra1+ {[%clk 0:00:18]} 31. Bf1 {[%clk 0:00:51]}  Nf3+ {[%clk 0:00:15]} 32. Kg2 {[%clk 0:00:49]}  Ne1+ {[%clk 0:00:15]} 33. Kh3 {[%clk 0:00:46]}  Qd7+ {[%clk 0:00:14]} 34. g4 {[%clk 0:00:44]}  Ra7 {[%clk 0:00:09]} 35. Bxb5 {[%clk 0:00:43]}  Qe7 {[%clk 0:00:05]} 36. Bc4 {[%clk 0:00:44]}  g5 {[%clk 0:00:03]} 37. Qg8+ {[%clk 0:00:35]}  Kh6 {[%clk 0:00:03]} 38. hxg5+ {[%clk 0:00:35]}  fxg5 {[%clk 0:00:03]} 39. Rxd6+ {[%clk 0:00:34]}  Qxd6 {[%clk 0:00:02]} 40. Bxg5# {[%clk 0:00:25]} 1-0


[Site "https://www.chess.com"]

[Event "Titled Tuesday Blitz January 17 Early 2023"]
[White "Player, Edmund C"]
[Black "Trigo Urquijo, Sergio"]
[WhiteFideId "406520"]
[BlackFideId "2262436"]
[WhiteElo "2204"]
[BlackElo "2408"]
[Result "1-0"]
[Round "04"]
[TimeControl "180+2"]
[Date "2023.01.17"]
[WhiteClock "0:00:50"]
[BlackClock "0:00:57"]

1. e4 {[%clk 0:03:00]}  c6 {[%clk 0:02:55]} 2. d4 {[%clk 0:02:59]}  d5 {[%clk 0:02:55]} 3. Nd2 {[%clk 0:02:59]}  dxe4 {[%clk 0:02:55]} 4. Nxe4 {[%clk 0:02:58]}  Nf6 {[%clk 0:02:55]} 5. Nxf6+ {[%clk 0:02:58]}  exf6 {[%clk 0:02:56]} 6. c3 {[%clk 0:02:58]}  Bd6 {[%clk 0:02:57]} 7. Bd3 {[%clk 0:02:59]}  O-O {[%clk 0:02:57]} 8. Qc2 {[%clk 0:02:59]}  Re8+ {[%clk 0:02:58]} 9. Ne2 {[%clk 0:02:59]}  h5 {[%clk 0:02:59]} 10. O-O {[%clk 0:02:58]}  h4 {[%clk 0:02:59]} 11. h3 {[%clk 0:02:58]}  Nd7 {[%clk 0:02:57]} 12. Bf4 {[%clk 0:02:58]}  Nf8 {[%clk 0:02:55]} 13. Bxd6 {[%clk 0:02:55]}  Qxd6 {[%clk 0:02:56]} 14. Rae1 {[%clk 0:02:54]}  Be6 {[%clk 0:02:51]} 15. Nc1 {[%clk 0:02:51]}  g5 {[%clk 0:02:49]} 16. f4 {[%clk 0:02:33]}  Kg7 {[%clk 0:02:37]} 17. Qd2 {[%clk 0:01:38]}  gxf4 {[%clk 0:02:22]} 18. Rxf4 {[%clk 0:01:34]}  Ng6 {[%clk 0:02:15]} 19. Bxg6 {[%clk 0:01:25]}  fxg6 {[%clk 0:02:16]} 20. Rxh4 {[%clk 0:01:26]}  g5 {[%clk 0:02:10]} 21. Rhe4 {[%clk 0:01:25]}  Bf7 {[%clk 0:02:08]} 22. Rxe8 {[%clk 0:01:19]}  Rxe8 {[%clk 0:02:09]} 23. Rxe8 {[%clk 0:01:19]}  Bxe8 {[%clk 0:02:09]} 24. Nd3 {[%clk 0:01:13]}  Bf7 {[%clk 0:02:05]} 25. a3 {[%clk 0:01:05]}  Qg3 {[%clk 0:01:53]} 26. Nc5 {[%clk 0:00:56]}  b6 {[%clk 0:01:23]} 27. Ne4 {[%clk 0:00:52]}  Qh4 {[%clk 0:01:16]} 28. Nd6 {[%clk 0:00:51]}  Bd5 {[%clk 0:00:57]} 29. Nf5+ {[%clk 0:00:50]} 1-0


[Site "https://www.chess.com"]